Cogmind - Beta 14 @@@ ROGUE MODE // 2025.05.01 @ 22:42:44 Player: GR4C3 Result: Destroyed by G-47 Trooper with Particle Gun Performance ------------- Evolutions (2) 1000 Regions Visited (3) 600 Robots Destroyed (42) 210 Value Destroyed (1294) 1294 Prototype IDs (0) 0 Alien Tech Used (0) 0 Bonus (88) 88 TOTAL SCORE: 3192 Bonus ------- High Alert Combat Kills 88 Cogmind --------- Core Integrity 0/550 Matter 23/300 Energy 100/100 System Corruption 3% Temperature Cool (9) Movement Core (50) Location -8/Materials Parts ------- > --- POWER (2) -------- (None) > --- PROPULSION (4) --- (None) > --- UTILITY (3) ------ Visual Processing Unit > --- WEAPON (2) ------- Autogun > --- INVENTORY (5) ---- Improved Heat Sink Peak State ------------ > --- POWER ------------ Light Deuterium Engine Light Nuclear Core > --- PROPULSION ------- Aluminum Leg Improved Aluminum Leg Carbon-fiber Leg > --- UTILITY ---------- Visual Processing Unit Seismic Detector ECM Suite > --- WEAPON ----------- Shock Rifle High-powered Shotgun > --- INVENTORY -------- Light Ion Engine Improved Heat Sink Transmission Jammer Autogun Mini Grenade Launcher [Rating: 23] Favorites ----------- Power Light Ion Engine Engine Light Ion Engine Power Core Light Nuclear Core Propulsion Aluminum Leg Leg Aluminum Leg Hover Unit Hover Unit Flight Unit Flight Unit Utility Visual Processing Unit Device Seismic Detector Storage Small Storage Unit Processor Visual Processing Unit Weapon Mini Grenade Launcher Energy Gun Shock Rifle Ballistic Gun High-powered Shotgun Launcher Mini Grenade Launcher Build | -11 -10 -9 -8 ------- Run | Yrd Mat Mat Mat Slots Evolved 4 | . . 2 2 Power 1 | . . . 1 Propulsion 2 | . . 1 1 Utility 1 | . . 1 . Weapon . | . . . . Parts Attached 65 | 8 14 19 24 Power 10 | 1 3 2 4 Engine 8 | 1 2 2 3 Core 2 | . 1 . 1 Reactor . | . . . . Propulsion 20 | 2 4 7 7 Treads . | . . . . Leg 9 | 2 1 . 6 Wheel . | . . . . Hover 5 | . 3 2 . Flight 6 | . . 5 1 Utility 9 | 3 2 2 2 Device 7 | 2 1 2 2 Storage 1 | 1 . . . Processor 1 | . 1 . . Hackware . | . . . . Protection . | . . . . Artifact . | . . . . Weapon 26 | 2 5 8 11 Energy Gun 12 | 2 3 5 2 Energy Cannon . | . . . . Ballistic Gun 8 | . . 2 6 Ballistic Cannon . | . . . . Launcher 6 | . 2 1 3 Special Weapon . | . . . . Impact Weapon . | . . . . Slashing Weapon . | . . . . Piercing Weapon . | . . . . Special Melee Weapon . | . . . . Unidentified Prototypes . | . . . . Parts Lost 28 | . 1 9 18 Power 5 | . . 2 3 Propulsion 13 | . . 4 9 Utility 4 | . 1 . 3 Weapon 6 | . . 3 3 Highest Loss Streak 10 | . 1 7 10 To Critical Strikes 1 | . . . 1 Average Slot Usage (%) 85 | . 96 89 78 Engine 9 | . 6 10 10 Core 4 | . 6 . 5 Leg 12 | . 21 . 11 Hover 5 | . 6 18 . Flight 5 | . . 8 7 Device 19 | . 22 22 16 Processor 8 | . 4 11 9 Energy Gun 11 | . 24 9 5 Ballistic Gun 4 | . . 3 6 Launcher 4 | . 3 5 4 Peak Build Rating 23 | 9 12 14 23 Average Rating 12 | 5 9 11 16 On Entrance 7 | . 9 9 12 Naked Turns . | . . . . Heaviest Build 19 | 13 12 12 19 Greatest Support 48 | 20 20 18 48 Greatest Overweight (x) 4 | . 3 2 4 Average Overweight (x) . | . . . . Largest Inventory Capacity 8 | 8 5 5 5 Average Capacity 5 | 6 5 5 5 Most Carried 5 | 5 5 5 5 Average Carried 4 | 2 4 4 4 Final Capacity 5 | 5 5 5 5 Final Carried 5 | 3 5 5 1 Class Distribution -------------------- 46% | Scavenger-Mutant 43% | Mutant 9% | Scavenger-Sprinter Dominant Class ---------------- Mutant | -10/Materials Scavenger-Mutant | -9/Materials Scavenger-Mutant | -8/Materials Resources | -11 -10 -9 -8 ----------- Run | Yrd Mat Mat Mat Matter Collected 877 | 273 113 132 359 Remotely . | . . . . Salvage Created 1189 | 40 365 241 543 Parts 73 | 4 22 17 30 Haulers Intercepted . | . . . . Recyclers Shooed 1 | . . . 1 Parts Field Recycled . | . . . . Retrieved Matter . | . . . . Parts Self-Destructed . | . . . . Prevented . | . . . . Kills | -11 -10 -9 -8 ------- Run | Yrd Mat Mat Mat Combat Hostiles Destroyed 33 | . 9 9 15 Guns 16 | . 3 7 6 AOE 17 | . 6 2 9 Classes Destroyed 9 | 1 3 1 4 Worker 1 | . 1 . . Tunneler 2 | 2 . . . Recycler 1 | . . . 1 Watcher 5 | . 3 1 1 Swarmer 9 | . . 6 3 Grunt 20 | . 9 3 8 Brawler 1 | . . . 1 Sentry 1 | . . . 1 Hunter 2 | . . . 2 Best Kill Streak 6 | 1 5 6 4 Combat Bots Only 5 | . 3 5 4 Max Kills in Single Turn 3 | 1 3 2 2 Gunslinging 1 | . . 1 . Exploded 2 | . 2 2 2 Melee . | . . . . Uniques/NPCs Destroyed . | . . . . Combat | -11 -10 -9 -8 -------- Run | Yrd Mat Mat Mat Hostile Shots Fired 274 | . 33 100 141 Missed 103 | . 9 49 45 Damage Taken 2509 | . 334 612 1563 Core 785 | . 67 162 556 Absorbed by Shields . | . . . . Regen/Repaired (Parts) 75 | . . . 75 Core Remaining (%) 77 | 100 73 59 . Volleys Fired 110 | 5 28 28 49 Largest 2 | 2 2 2 2 Hottest 115 | 90 115 105 80 Shots Fired 189 | 10 53 44 82 Gun 165 | 10 46 42 67 Cannon . | . . . . Launcher 24 | . 7 2 15 Special . | . . . . Kinetic 65 | . . 21 44 Thermal 77 | 10 46 21 . Explosive 24 | . 7 2 15 Electromagnetic 23 | . . . 23 Robot Hit Streak 13 | 3 11 5 13 Robot Miss Streak 5 | 1 3 4 5 Penetration Max . | . . . . Secondary Targets 4 | . . 2 2 Max Gunslinging Chain 1 | . . 1 1 Shots Hit Robots 113 | 7 35 23 48 Core Hits 79 | 2 24 16 37 Critical Kills . | . . . . Critical Parts Destroyed . | . . . . Critical Strikes 1 | . 1 . . Burn 1 | . 1 . . Melee Attacks . | . . . . Impact . | . . . . Slashing . | . . . . Piercing . | . . . . Sneak Attacks . | . . . . Combat Hostiles . | . . . . Follow-up Attacks . | . . . . Damage Inflicted 3321 | 82 1008 369 1862 Guns 1508 | 82 393 228 805 Cannons . | . . . . Explosions 1813 | . 615 141 1057 Melee . | . . . . Ramming . | . . . . Kinetic 657 | . . 112 545 Thermal 591 | 82 393 116 . Explosive 1737 | . 615 141 981 Electromagnetic 336 | . . . 336 Impact . | . . . . Slashing . | . . . . Piercing . | . . . . Highest Corruption 3 | . . . 3 Average Corruption 1 | . . . 1 Corruption Purged . | . . . . Corruption Blocked . | . . . . Effects 8 | . . . 8 Message Errors 2 | . . . 2 Matter Fused 2 | . . . 2 Energy Discharges 4 | . . . 4 Overload Shots . | . . . . Overflow Damage 64 | . 30 1 33 Projectiles . | . . . . Explosions 64 | . 30 1 33 Melee . | . . . . Knockbacks . | . . . . Impact . | . . . . Kinetic . | . . . . Secondary . | . . . . Self-Inflicted Damage 52 | . 17 18 17 Shots 3 | . 1 1 1 Rammed . | . . . . Targets Rammed . | . . . . Kicked . | . . . . Crushed . | . . . . Highest Temperature 252 | 120 252 59 84 Average Temperature 49 | 53 80 25 25 Received Heat Transfer 744 | . 177 144 423 Effects 2 | . 2 . . Interference 2 | . 2 . . Siege Activations . | . . . . Robots Corrupted . | . . . . Combat Hostiles . | . . . . Parts Fried 1 | . . . 1 Impact Corruptions . | . . . . Robots Melted . | . . . . Combat Hostiles . | . . . . Parts Melted 2 | 1 1 . . Heat Transferred 1561 | 223 1077 261 . Parts Sabotaged . | . . . . Parts Stolen . | . . . . Parts Stripped . | . . . . Power Chain Reactions . | . . . . Alert | -11 -10 -9 -8 ------- Run | Yrd Mat Mat Mat Peak Influence 656 | 10 313 314 656 Initial 132 | . 6 47 132 Average 242 | 4 119 156 385 Maximum Alert Level 2 | . 1 1 2 Low Security (%) 51 | 100 86 82 12 Level 1 20 | . 13 17 29 Level 2 27 | . . . 58 Level 3 . | . . . . Level 4 . | . . . . Level 5 . | . . . . High Security . | . . . . Max Security . | . . . . Squads Dispatched 8 | . 1 2 5 Investigation 1 | . . . 1 Extermination . | . . . . Reinforcement 6 | . 1 2 3 Assault . | . . . . Garrison 1 | . . . 1 Intercept . | . . . . Searches Triggered . | . . . . Construction Impeded . | . . . . Haulers Reinforced . | . . . . Active Scanning Responses . | . . . . Cargo Convoy Interrupts . | . . . . Stealth | -11 -10 -9 -8 --------- Run | Yrd Mat Mat Mat Distress Signals 13 | . 2 2 9 Communications Jammed . | . . . . Distress Signals . | . . . . Times Spotted 95 | . 15 27 53 Peak Tracking Total 12 | . 4 9 12 Tactical Retreats 14 | . . 6 8 Traps | -11 -10 -9 -8 ------- Run | Yrd Mat Mat Mat Traps Triggered 2 | . . . 2 Indirectly . | . . . . Trap Hack Attempts . | . . . . Triggered . | . . . . Disarmed . | . . . . Reprogrammed . | . . . . Reused . | . . . . Traps Extracted . | . . . . Installed . | . . . . Triggered 1 | . . . 1 Machines | -11 -10 -9 -8 ---------- Run | Yrd Mat Mat Mat Machines Disabled 8 | . 1 1 6 Max in Single Turn 1 | . 1 1 1 Machines Repaired . | . . . . Machines Dismantled . | . . . . Machines Sabotaged . | . . . . Overloaded Fab Kills . | . . . . Hacking | -11 -10 -9 -8 --------- Run | Yrd Mat Mat Mat Machines Accessed 1 | . . . 1 Terminals . | . . . . Fabricators . | . . . . Repair Stations 1 | . . . 1 Recycling Units . | . . . . Scanalyzers . | . . . . Garrison Access . | . . . . Total Hacks 2 | . . . 2 Successful 2 | . . . 2 Failed . | . . . . Catastrophic . | . . . . Database Lockouts . | . . . . Manual . | . . . . Terminals . | . . . . Fabricators . | . . . . Repair Stations 2 | . . . 2 Recycling Units . | . . . . Scanalyzers . | . . . . Garrison Access . | . . . . Terminal Hacks . | . . . . Fabricator Hacks . | . . . . Repair Station Hacks 2 | . . . 2 Scan Component 1 | . . . 1 Repair 1 | . . . 1 Recycling Unit Hacks . | . . . . Scanalyzer . | . . . . Garrison Access Hacks . | . . . . Unauthorized Hacks . | . . . . Terminals . | . . . . Fabricators . | . . . . Repair Stations . | . . . . Recycling Units . | . . . . Scanalyzers . | . . . . Garrison Access . | . . . . Data Cores Recovered . | . . . . Used . | . . . . Hacking Detections . | . . . . Full Trace Events . | . . . . Feedback Events . | . . . . Feedback Blocked . | . . . . Robot Schematics Acquired . | . . . . Robots Built . | . . . . Authchips . | . . . . Time . | . . . . Total Robot Build Rating . | . . . . Part Schematics Acquired . | . . . . Parts Built . | . . . . Authchips . | . . . . Time . | . . . . Total Part Build Rating . | . . . . Parts Repaired 1 | . . . 1 Time 38 | . . . 38 Parts Recycled . | . . . . Recycled Matter . | . . . . Retrieved Matter . | . . . . Retrieved Components . | . . . . Parts Scanalyzed . | . . . . Part Schematics Acquired . | . . . . Parts Damaged . | . . . . Bothacking | -11 -10 -9 -8 ------------ Run | Yrd Mat Mat Mat Used RIF Installer . | . . . . Robots Hacked . | . . . . Non-combat . | . . . . Combat . | . . . . Robot Hacks Applied . | . . . . Relay Couplers Released . | . . . . Fabnet Peak Effective % . | . . . . Robots Rewired . | . . . . Allies Hacked . | . . . . Hacks Repelled . | . . . . Allies | -11 -10 -9 -8 -------- Run | Yrd Mat Mat Mat Total Allies . | . . . . Largest Group . | . . . . Highest-Rated Group . | . . . . Highest-Rated Ally . | . . . . Total Orders . | . . . . Ally Attacks . | . . . . Total Damage . | . . . . Kills . | . . . . Allies Corrupted . | . . . . Allies Melted . | . . . . Intel | -11 -10 -9 -8 ------- Run | Yrd Mat Mat Mat Robot Analysis Total . | . . . . Derelict Logs Recovered . | . . . . Drone Launches . | . . . . Drone Recoveries . | . . . . Exploration | -11 -10 -9 -8 ------------- Run | Yrd Mat Mat Mat Turns Passed 1586 | 122 419 302 743 Spaces Moved 1271 | 82 295 350 544 Core 62 | 13 2 5 42 Treads . | . . . . Legs 523 | 69 188 . 266 Wheels . | . . . . Hover 364 | . 105 259 . Flight 322 | . . 86 236 Fastest Speed 31 | 50 56 34 31 Average Speed 78 | 108 97 50 81 Slowest Speed 280 | 120 200 150 280 Overloaded Moves . | . . . . Propulsion Burnouts . | . . . . Robots Hopped . | . . . . Cave-ins Triggered . | . . . . Exploration Rate (%) 30 | 4 40 36 40 Regions Visited 3 Branch Regions . Pre-discovered Areas . | . . . . Known Exits Taken . | . . . . Unknown Exits Taken 3 | 1 1 1 . Scrap Searched . | . . . . Spaces Dug . | . . . . Terrain Destroyed 183 | . 65 21 97 Melee . | . . . . Projectile . | . . . . AOE 183 | . 65 21 97 Terrain Rammed . | . . . . Walls Destroyed . | . . . . Machines Disabled . | . . . . Actions | -11 -10 -9 -8 --------- Run | Yrd Mat Mat Mat Total 1668 | 103 374 429 762 Wait 166 | . 13 22 131 Move 1268 | 81 294 349 544 Hop . | . . . . Pick Up 38 | 9 11 10 8 Fast Attach 11 | 1 3 2 5 Attach 25 | 6 3 9 7 Detach . | . . . . Swap 29 | 1 8 8 12 Drop 21 | . 14 1 6 Fire 110 | 5 28 28 49 Melee . | . . . . Ram . | . . . . Kick . | . . . . Crush . | . . . . Escape Stasis . | . . . . Rewire . | . . . . Trap . | . . . . Miscellaneous . | . . . . Route ------- -11/Scrapyard -10/Materials -9/Materials (discovered 4 exits: *Mat x2 / [*Min] / [*Sto]) -8/Materials History --------- Turn | Location | Event 10 | -11/Scrapyard | Discovered new exit (range 16) 123 | -11/Scrapyard | Entered Materials 311 | -10/Materials | Build established: Mutant 531 | -10/Materials | Discovered new exit (range 8) 542 | -10/Materials | Entered another Materials area 542 | -9/Materials | Evolved 2 slots: Propulsion x1, Utility x1 561 | -9/Materials | Discovered new exit (range 18) 641 | -9/Materials | Discovered new exit (range 17) 744 | -9/Materials | Discovered new exit (range 14) 767 | -9/Materials | Lost 7 parts (1p3n3w) 783 | -9/Materials | Discovered new exit (range 11) 844 | -9/Materials | Entered another Materials area 844 | -8/Materials | Evolved 2 slots: Power x1, Propulsion x1 1050 | -8/Materials | Lost 4 parts (4n) 1311 | -8/Materials | Build established: Scavenger-Mutant 1372 | -8/Materials | Repaired Carbon-fiber Leg 1470 | -8/Materials | Garrison activated, responded to threat 1510 | -8/Materials | Core integrity fell below 50% 1535 | -8/Materials | Core integrity fell below 20% 1555 | -8/Materials | Lost 10 parts (2p5n1u2w) 1587 | -8/Materials | Destroyed by G-47 Trooper with Particle Gun Last Messages --------------- 01565_ R-06 Scavenger collects Lgt. Treads. 01566_ K-01 Serf collects debris. 01569_ W-25 Informer sends out distress signal. 01569_ R-06 Scavenger collects Lgt. Nuclear Core. 01571_ Slug penetrates G-47 Trooper. 01571_ K-01 Serf collects debris. 01572_ G-47 Trooper destroyed. 01572_ Switching to secondary target: H-55 Commando. 01574_ Lgt. Ion Engine destroyed. 01574_ K-01 Serf collects debris. 01574_ R-06 Scavenger collects Hammer. 01577_ R-06 Scavenger collects Imp. Heat Sink. 01580_ Penetrated by Slug. 01583_ K-01 Serf collects debris. 01583_ Penetrated by Slug. 01583_ H-55 Commando destroyed. 01585_ Hpw. Shotgun destroyed. 01586_ K-01 Serf collects debris. Map ----- +----------------------------------------------------+ | ????????###+###????######???????????????????? | | ????????# #??? #???????????????????? | | ????????# #?? #???????????????????? | | ????????#### #? #???????????????????? | | ???????????# # #???????????????????? | | ??????###### / #???????????????????? | | ??????# # #??????? "??????????? | | ??????# # #??????? "??????????? | | #######+#### #? #??????? "??????????? | | # # #######/###??????? ??????????? | | #! ! + #########+###????????? | | # # ######???? | | # """ """ # ????? | | # """ """ # ?????? | | # """ """ # ???????? | | # # #????????? | | #######+#### """ #????????? | | # ??# #### """ #????????? | | # ## """ "Y" #????????? | | # # [|| "" #????????? | | # + || #????????? | | # ! # %g || #????????? | | # # #####+########g######### #????????? | | #! ?# # ! # *%k #???# #????????? | | # ?# #/ #[!% """ #???# #????????? | | # ??# # #[%@ """ #???# #????????? | | ###??# + # """ #???# ##+####### | | ?????# # """ """ # #???# | | ?????# # """ """ #] """ #???# | | ?????# + """ """ # """ #???# | | ?????# # # """ #???# ### | | ?????# ########### #???# #?# | | ?????# #?????????##########???# #?# | | ?????# #??????????????????????# #?# % | | ?????# #??????????????????????# #?# | | ?????# #?#########????????????# #?# | | ?????# #?# #????????????# ### | | ?????# #?# #????????????# ##### | | ?????# #?# #????????????# #??## | | ???###+####### #????????????# #??## | | ???# # ##########???# #??## | | ???# # # ##### #???# | | ???# + # """ + #???# ## | | ???# # # """ ##### #???# ## | | ???# # + """ #???# #???#]]! !!## | | ???# # # #???# #???#]]!!!!## | | ???# # #! """ ! #???# #???######### | | ???# # # """ #???# #???????????# | | ???########### # """ !#???# #???????????# | | ?????????????# # #???# #??????????## | +----------------------------------------------------+ Best States ------------- Heat Dissipation 42 Energy Generation 23 Energy Capacity 250 Matter Stores 300 Matter Capacity 300 Sight Range 18 Terrain Scan Range 16 Terrain Scan Density 10 ECM Strength 1 Evasion (%) 63 Item Schematics ----------------- None Robot Schematics ------------------ None Fabricated ------------ Nothing Alien Tech Used ----------------- None Achievements -------------- None Challenges ------------ None Game ------ Seed UltimateStormArchive Manual? 0 Play Time 00:38:49 Cumulative 81.7 hours Start 2025.05.01 @ 22:04:03 End 2025.05.01 @ 22:42:44 Sessions 1 Manual Loads 0 Difficulty Rogue Special Mode None Game No. 66 Rogue 52 Adventurer 14 Explorer 0 Win Type - Total 0 Types 0/0/0/0/0/0/0/0/0 Lore% 20 Gallery% 39 Achievement% 28 Wizard Run 0 Options --------- Layout 1 ASCII 0 Keyboard 0 Movement Mouse Keybinds 0 Fullscreen 0 Font 20/Terminus Map View 50x35 Zoom Use 0% Tactical HUD 1 Map Filters NONE Filters NONE Steam 1 RUN: c5ab2a31-f7f5-435b-90f4-8161239b30c2